[Event "Charlotte GM-A MLK 2022"]
[Site "Charlotte"]
[Date "2022.01.14"]
[Round "1.2"]
[White "Talukdar, Rohan"]
[Black "Gauri, Shankar"]
[Result "1-0"]
[ECO "C65"]
[WhiteElo "2329"]
[BlackElo "2325"]
[Annotator "ChessBase"]
[PlyCount "77"]
[EventDate "2022.01.13"]
[EventType "tourn"]
[EventCountry "USA"]
[SourceTitle "playchess.com"]
[Source "ChessBase"]
[SourceQuality "1"]
[TimeControl "5400+30"]

1. e4 {[%emt 0:00:02]} e5 {[%emt 0:01:18]} 2. Nf3 {[%emt 0:00:14]} Nc6 {[%emt 0:00:16]} 3. Bb5 {[%emt 0:00:08]} Nf6 {[%emt 0:00:37]} 4. d3 {[%emt 0:00:19]} Bc5 {[%emt 0:00:06]} 5. c3 {[%emt 0:00:04]} d5 {[%emt 0:01:37]} 6. exd5 {[%emt 0:00:08]} Qxd5 {[%emt 0:00:08]} 7. Bc4 {[%emt 0:00:01]} Qd6 {[%emt 0:00:44]} 8. Nbd2 {[%emt 0:00:05]} O-O {[%emt 0:02:29]} 9. Qe2 {[%emt 0:00:04]} Bf5 {[%emt 0:12:49]} 10. Ng5 {[%emt 0:00:14]} Bb6 {[%emt 0:06:49]} 11. Nde4 {[%emt 0:00:06]} Nxe4 {[%emt 0:07:40]} 12. dxe4 {[%emt 0:00:57]} Bg6 {[%emt 0:02:32]} 13. h4 {[%emt 0:02:54]} h6 {[%emt 0:02:41]} 14. h5 {[%emt 0:01:27]} Bh7 {[%emt 0:00:25]} 15. Nxh7 {[%emt 0:16:06]} Kxh7 {[%emt 0:00:47]} 16. g4 {[%emt 0:00:16]} f6 {[%emt 0:26:54]} 17. a3 {[%emt 0:09:34]} Nd8 {[%emt 0:05:55]} 18. Qf3 {[%emt 0:02:58]} Nf7 {[%emt 0:00:30]} 19. Bd2 {[%emt 0:46:58]} Ng5 {[%emt 0:00:31]} 20. Qf5+ {[%emt 0:00:15]} Kh8 {[%emt 0:00:01]} 21. Rd1 {[%emt 0:03:02]} Rad8 {[%emt 0:00:03]} 22. Bb3 {[%emt 0:01:51]} Qe7 {[%emt 0:17:41]} 23. O-O {[%emt 0:04:24]} Bc5 {[%emt 0:02:35]} 24. Kg2 {[%emt 0:00:20]} Rd6 {[%emt 0:01:34]} 25. Bc1 {[%emt 0:00:24]} Rdd8 {[%emt 0:01:17]} 26. Bd5 {[%emt 0:01:15]} c6 {[%emt 0:00:34]} 27. Bc4 {[%emt 0:00:27]} b5 {[%emt 0:00:47]} 28. Ba2 {[%emt 0:00:47]} Bb6 {[%emt 0:00:31]} 29. Bb3 {[%emt 0:00:16]} a6 {[%emt 0:04:06]} 30. Rxd8 {[%emt 0:04:29]} Rxd8 {[%emt 0:00:04]} 31. Rd1 {[%emt 0:00:03]} Rxd1 {[%emt 0:01:11]} 32. Bxd1 {[%emt 0:00:01]} Qd8 {[%emt 0:00:47]} 33. Bb3 {[%emt 0:00:30]} c5 {[%emt 0:00:26]} 34. Bd5 {[%emt 0:00:41]} c4 {[%emt 0:00:26]} 35. Bxg5 {[%emt 0:01:27]} hxg5 {[%emt 0:00:36]} 36. Qg6 {[%emt 0:01:56]} Bc5 {[%emt 0:00:31]} 37. Be6 {[%emt 0:00:33]} Bf8 {[%emt 0:00:30]} 38. h6 {[%emt 0:00:33]} Qe7 {[%emt 0:00:07]} 39. Bf7 {[%emt 0:00:10]} 1-0

[Event "Charlotte GM-A MLK 2022"]
[Site "Charlotte"]
[Date "2022.01.14"]
[Round "1.5"]
[White "Vivekananthan, Anish"]
[Black "Posthuma, Joshua"]
[Result "1/2-1/2"]
[ECO "A37"]
[WhiteElo "2319"]
[BlackElo "2359"]
[Annotator "ChessBase"]
[PlyCount "98"]
[EventDate "2022.01.13"]
[EventType "tourn"]
[EventCountry "USA"]
[SourceTitle "playchess.com"]
[Source "ChessBase"]
[SourceQuality "1"]
[TimeControl "5400+30"]

1. c4 {[%emt 0:00:03]} c5 {[%emt 0:00:32]} 2. Nf3 {[%emt 0:00:43]} g6 {[%emt 0:02:48]} 3. g3 {[%emt 0:02:13]} Bg7 {[%emt 0:00:22]} 4. Bg2 {[%emt 0:00:05]} Nc6 {[%emt 0:00:15]} 5. Nc3 {[%emt 0:00:11]} d6 {[%emt 0:00:22]} 6. d3 {[%emt 0:02:23]} Bf5 {[%emt 0:05:50]} 7. O-O {[%emt 0:02:54]} Qd7 {[%emt 0:00:25]} 8. Re1 {[%emt 0:00:15]} Bh3 {[%emt 0:00:56]} 9. Bh1 {[%emt 0:01:36]} h5 {[%emt 0:01:26]} 10. Bd2 {[%emt 0:02:42]} h4 {[%emt 0:01:44]} 11. Rb1 {[%emt 0:01:35]} Nf6 {[%emt 0:06:09]} 12. a3 {[%emt 0:03:35]} hxg3 {[%emt 0:04:11]} 13. fxg3 {[%emt 0:07:27]} Qf5 {[%emt 0:23:29]} 14. b4 {[%emt 0:07:12]} Ng4 {[%emt 0:14:07]} 15. Nd5 {[%emt 0:05:04]} Nd4 {[%emt 0:12:14]} 16. e3 {[%emt 0:14:33]} Nxf3+ {[%emt 0:04:22]} 17. Qxf3 {[%emt 0:02:01]} Qxf3 {[%emt 0:02:02]} 18. Bxf3 {[%emt 0:00:01]} Ne5 {[%emt 0:00:37]} 19. Be2 {[%emt 0:03:50]} Rb8 {[%emt 0:00:10]} 20. Rbd1 {[%emt 0:14:20]} Bg4 {[%emt 0:02:47]} 21. Bc3 {[%emt 0:03:22]} Bxe2 {[%emt 0:01:14]} 22. Rxe2 {[%emt 0:00:01]} e6 {[%emt 0:01:03]} 23. Bxe5 {[%emt 0:01:59]} Bxe5 {[%emt 0:00:08]} 24. Nf4 {[%emt 0:04:17]} g5 {[%emt 0:00:53]} 25. Ng2 {[%emt 0:00:32]} Ke7 {[%emt 0:00:25]} 26. b5 {[%emt 0:03:24]} a6 {[%emt 0:04:25]} 27. Rb1 {[%emt 0:01:39]} d5 {[%emt 0:00:58]} 28. Rc2 {[%emt 0:00:35]} d4 {[%emt 0:00:43]} 29. e4 {[%emt 0:01:14]} axb5 {[%emt 0:02:01]} 30. Rxb5 {[%emt 0:01:58]} b6 {[%emt 0:00:01]} 31. Ne1 {[%emt 0:01:36]} Bc7 {[%emt 0:00:21]} 32. Nf3 {[%emt 0:05:11]} g4 {[%emt 0:00:42]} 33. Nd2 {[%emt 0:00:12]} Rh5 {[%emt 0:02:05]} 34. a4 {[%emt 0:00:29]} Rbh8 {[%emt 0:00:41]} 35. Nf1 {[%emt 0:00:02]} Ra8 {[%emt 0:00:43]} 36. Ra2 {[%emt 0:00:07]} Kd6 {[%emt 0:00:41]} 37. Nd2 {[%emt 0:00:22]} Rah8 {[%emt 0:02:00]} 38. Nb3 {[%emt 0:03:22]} Kc6 {[%emt 0:01:48]} 39. Rg2 {[%emt 0:01:48]} Kd6 {[%emt 0:01:30]} 40. a5 {[%emt 0:03:08]} bxa5 {[%emt 0:00:49]} 41. Nxa5 {[%emt 0:00:19]} Bxa5 {[%emt 0:01:45]} 42. Rxa5 {[%emt 0:00:04]} Rb8 {[%emt 0:00:34]} 43. Rd2 {[%emt 0:00:45]} Rb3 {[%emt 0:00:24]} 44. Ra6+ {[%emt 0:00:33]} Ke5 {[%emt 0:00:41]} 45. Rc6 {[%emt 0:01:05]} Kf6 {[%emt 0:00:01]} 46. Kg2 {[%emt 0:00:35]} Kg6 {[%emt 0:00:07]} 47. Rc8 {[%emt 0:00:52]} Kg7 {[%emt 0:00:24]} 48. Rc7 {[%emt 0:00:20]} Kg6 {[%emt 0:00:52]} 49. Rc8 {[%emt 0:00:04]} Kg7 {[%emt 0:00:54]} 1/2-1/2

[Event "Charlotte GM-A MLK 2022"]
[Site "Charlotte"]
[Date "2022.01.15"]
[Round "4.3"]
[White "Gauri, Shankar"]
[Black "Vivekananthan, Anish"]
[Result "1/2-1/2"]
[ECO "C65"]
[WhiteElo "2325"]
[BlackElo "2319"]
[Annotator "ChessBase"]
[PlyCount "32"]
[EventDate "2022.01.13"]
[EventType "tourn"]
[EventCountry "USA"]
[SourceTitle "playchess.com"]
[Source "ChessBase"]
[SourceQuality "1"]
[TimeControl "5400+30"]

1. e4 {[%emt 0:05:02]} e5 {[%emt 0:01:57]} 2. Nf3 {[%emt 0:00:05]} Nc6 {[%emt 0:00:06]} 3. Bb5 {[%emt 0:00:03]} Nf6 {[%emt 0:00:08]} 4. d3 {[%emt 0:01:31]} Bc5 {[%emt 0:00:19]} 5. Bxc6 {[%emt 0:00:46]} dxc6 {[%emt 0:00:05]} 6. Nbd2 {[%emt 0:00:20]} Nd7 {[%emt 0:01:28]} 7. Nc4 {[%emt 0:00:33]} Qe7 {[%emt 0:02:28]} 8. O-O {[%emt 0:08:12]} a5 {[%emt 0:06:26]} 9. Be3 {[%emt 0:02:37]} f6 {[%emt 0:04:23]} 10. a4 {[%emt 0:12:04]} b6 {[%emt 0:02:21]} 11. Nfd2 {[%emt 0:07:27]} Ba6 {[%emt 0:02:24]} 12. Qe2 {[%emt 0:07:41]} O-O-O {[%emt 0:16:45]} 13. f4 {[%emt 0:20:16]} exf4 {[%emt 0:05:44]} 14. Rxf4 {[%emt 0:00:20]} Ne5 {[%emt 0:02:09]} 15. b3 {[%emt 0:04:14]} Bxc4 {[%emt 0:03:33]} 16. Nxc4 {[%emt 0:02:12]} Nxc4 {[%emt 0:00:41]} 1/2-1/2